[Event "Fast Chess"]
[Site "ChessKid.com"]
[Date "2020.05.08"]
[Round "2"]
[White "Dai, Lana"]
[Black "Li, Tobias"]
[Result "0-1"]
[ECO "C47"]
[WhiteElo "1266"]
[BlackElo "1369"]
[PlyCount "130"]
[EventDate "2020.??.??"]
[TimeControl "300"]
[WhiteClock "0:01:37"]
[BlackClock "0:00:01"]

1. e4 {[%emt 0:00:03]} e5 {[%emt 0:00:01]} 2. Nc3 {[%emt 0:00:01]} Nc6 {
[%emt 0:00:02]} 3. Nf3 {[%emt 0:00:01]} Nf6 {[%emt 0:00:01]} 4. a3 {[%emt 0:00:
01]} d6 {[%emt 0:00:00]} 5. h3 {[%emt 0:00:00]} h6 {[%emt 0:00:01]} 6. Bc4 {
[%emt 0:00:02]} a6 {[%emt 0:00:08]} 7. O-O {[%emt 0:00:01]} Be7 {[%emt 0:00:01]
} 8. d3 {[%emt 0:00:02]} O-O {[%emt 0:00:00]} 9. Nd5 {[%emt 0:00:03]} Be6 {
[%emt 0:00:06]} 10. Nxf6+ {[%emt 0:00:02]} Bxf6 {[%emt 0:00:01]} 11. Bxe6 {
[%emt 0:00:01]} fxe6 {[%emt 0:00:00]} 12. c4 {[%emt 0:00:08]} Nd4 {[%emt 0:00:
05]} 13. Nxd4 {[%emt 0:00:02]} exd4 {[%emt 0:00:01]} 14. b4 {[%emt 0:00:08]} e5
{[%emt 0:00:02]} 15. c5 {[%emt 0:00:08]} dxc5 {[%emt 0:00:02]} 16. bxc5 {
[%emt 0:00:01]} b6 {[%emt 0:00:05]} 17. cxb6 {[%emt 0:00:01]} cxb6 {[%emt 0:00:
01]} 18. a4 {[%emt 0:00:04]} Bg5 {[%emt 0:00:03]} 19. Ba3 {[%emt 0:00:13]} Be7
{[%emt 0:00:04]} 20. Bxe7 {[%emt 0:00:03]} Qxe7 {[%emt 0:00:03]} 21. Qg4 {
[%emt 0:00:08]} Qf6 {[%emt 0:00:12]} 22. Qd1 {[%emt 0:00:14]} Qh4 {[%emt 0:00:
09]} 23. Qb3+ {[%emt 0:00:10]} Kh8 {[%emt 0:00:08]} 24. Qxb6 {[%emt 0:00:03]}
Rfb8 {[%emt 0:00:05]} 25. Qd6 {[%emt 0:00:14]} Re8 {[%emt 0:00:10]} 26. Rab1 {
[%emt 0:00:19]} Qd8 {[%emt 0:00:13]} 27. Qxd8 {[%emt 0:00:19]} Rexd8 {[%emt 0:
00:03]} 28. Rb2 {[%emt 0:00:02]} Rdc8 {[%emt 0:00:01]} 29. Rfb1 {[%emt 0:00:04]
} Rc3 {[%emt 0:00:04]} 30. Rb8+ {[%emt 0:00:04]} Rxb8 {[%emt 0:00:01]} 31.
Rxb8+ {[%emt 0:00:01]} Kh7 {[%emt 0:00:01]} 32. Rb6 {[%emt 0:00:07]} Rxd3 {
[%emt 0:00:02]} 33. Rxa6 {[%emt 0:00:02]} Rd1+ {[%emt 0:00:02]} 34. Kh2 {
[%emt 0:00:03]} Rd2 {[%emt 0:00:01]} 35. f3 {[%emt 0:00:04]} Ra2 {[%emt 0:00:
03]} 36. a5 {[%emt 0:00:01]} d3 {[%emt 0:00:01]} 37. Rd6 {[%emt 0:00:11]} d2 {
[%emt 0:00:04]} 38. a6 {[%emt 0:00:06]} Kg8 {[%emt 0:00:03]} 39. a7 {[%emt 0:
00:02]} d1=Q {[%emt 0:00:07]} 40. Rxd1 {[%emt 0:00:07]} Rxa7 {[%emt 0:00:02]}
41. Rd8+ {[%emt 0:00:02]} Kf7 {[%emt 0:00:02]} 42. Rd5 {[%emt 0:00:03]} Ke6 {
[%emt 0:00:02]} 43. Rd8 {[%emt 0:00:15]} Re7 {[%emt 0:00:03]} 44. Ra8 {[%emt 0:
00:09]} Rd7 {[%emt 0:00:03]} 45. Ra6+ {[%emt 0:00:02]} Kf7 {[%emt 0:00:03]} 46.
Ra5 {[%emt 0:00:11]} Kf6 {[%emt 0:00:06]} 47. Ra6+ {[%emt 0:00:01]} Kg5 {
[%emt 0:00:04]} 48. g4 {[%emt 0:00:02]} Kf4 {[%emt 0:00:06]} 49. Kg2 {[%emt 0:
00:06]} Rd2+ {[%emt 0:00:01]} 50. Kf1 {[%emt 0:00:04]} Rh2 {[%emt 0:00:04]} 51.
Kg1 {[%emt 0:00:05]} Rxh3 {[%emt 0:00:02]} 52. Kg2 {[%emt 0:00:00]} Rxf3 {
[%emt 0:00:01]} 53. Ra2 {[%emt 0:00:09]} Rg3+ {[%emt 0:00:09]} 54. Kf2 {
[%emt 0:00:03]} Kxg4 {[%emt 0:00:07]} 55. Ra4 {[%emt 0:00:02]} Kf4 {[%emt 0:00:
01]} 56. Ke2 {[%emt 0:00:05]} Re3+ {[%emt 0:00:01]} 57. Kf2 {[%emt 0:00:01]}
Rxe4 {[%emt 0:00:01]} 58. Rxe4+ {[%emt 0:00:04]} Kxe4 {[%emt 0:00:01]} 59. Ke2
{[%emt 0:00:01]} Kd4 {[%emt 0:00:01]} 60. Kd2 {[%emt 0:00:01]} g5 {[%emt 0:00:
01]} 61. Ke2 {[%emt 0:00:02]} h5 {[%emt 0:00:01]} 62. Kf3 {[%emt 0:00:01]} h4 {
[%emt 0:00:03]} 63. Kg4 {[%emt 0:00:02]} e4 {[%emt 0:00:02]} 64. Kxg5 {[%emt 0:
00:03]} h3 {[%emt 0:00:01]} 65. Kg4 {[%emt 0:00:01]} h2 {[%emt 0:00:00]
OnlyHungryKiwi won on time} 0-1

[Event "Fast Chess"]
[Site "ChessKid.com"]
[Date "2020.05.08"]
[Round "2"]
[White "Li, Patrick"]
[Black "Halimi, Dorian"]
[Result "0-1"]
[ECO "C55"]
[WhiteElo "1229"]
[BlackElo "1213"]
[PlyCount "134"]
[EventDate "2020.??.??"]
[TimeControl "300"]
[WhiteClock "0:00:17"]
[BlackClock "0:00:01"]

1. e4 {[%emt 0:00:02]} e5 {[%emt 0:00:01]} 2. Nf3 {[%emt 0:00:01]} Nc6 {
[%emt 0:00:02]} 3. Nc3 {[%emt 0:00:00]} Nf6 {[%emt 0:00:01]} 4. Bc4 {[%emt 0:
00:01]} h6 {[%emt 0:00:05]} 5. O-O {[%emt 0:00:00]} a6 {[%emt 0:00:01]} 6. d3 {
[%emt 0:00:02]} Nd4 {[%emt 0:00:02]} 7. Nxd4 {[%emt 0:00:02]} exd4 {[%emt 0:00:
01]} 8. Nd5 {[%emt 0:00:05]} Nxd5 {[%emt 0:00:04]} 9. Bxd5 {[%emt 0:00:02]} Bd6
{[%emt 0:00:06]} 10. Qf3 {[%emt 0:00:03]} Qh4 {[%emt 0:00:05]} 11. h3 {[%emt 0:
00:13]} f6 {[%emt 0:00:06]} 12. Re1 {[%emt 0:00:19]} Bc5 {[%emt 0:00:16]} 13.
Bf4 {[%emt 0:00:15]} d6 {[%emt 0:00:03]} 14. g4 {[%emt 0:00:14]} Bd7 {[%emt 0:
00:12]} 15. Bg3 {[%emt 0:00:10]} Qg5 {[%emt 0:00:03]} 16. Bf4 {[%emt 0:00:03]}
Qh4 {[%emt 0:00:05]} 17. Bg3 {[%emt 0:00:02]} Qxh3 {[%emt 0:00:02]} 18. Bxb7 {
[%emt 0:00:09]} Bxg4 {[%emt 0:00:03]} 19. Qf4 {[%emt 0:00:07]} Rb8 {[%emt 0:00:
09]} 20. Bc6+ {[%emt 0:00:07]} Bd7 {[%emt 0:00:05]} 21. Bxd7+ {[%emt 0:00:04]}
Qxd7 {[%emt 0:00:01]} 22. Qf5 {[%emt 0:00:11]} Qxf5 {[%emt 0:00:04]} 23. exf5+
{[%emt 0:00:00]} Kf7 {[%emt 0:00:02]} 24. Re4 {[%emt 0:00:09]} Rxb2 {[%emt 0:
00:04]} 25. f3 {[%emt 0:00:16]} g6 {[%emt 0:00:05]} 26. fxg6+ {[%emt 0:00:03]}
Kxg6 {[%emt 0:00:02]} 27. Bf2 {[%emt 0:00:02]} d5 {[%emt 0:00:02]} 28. Rg4+ {
[%emt 0:00:04]} Kf5 {[%emt 0:00:02]} 29. Bxd4 {[%emt 0:00:06]} Bxd4+ {[%emt 0:
00:02]} 30. Rxd4 {[%emt 0:00:02]} h5 {[%emt 0:00:03]} 31. Rxd5+ {[%emt 0:00:07]
} Ke6 {[%emt 0:00:03]} 32. Rc5 {[%emt 0:00:04]} Rb7 {[%emt 0:00:10]} 33. Re1+ {
[%emt 0:00:04]} Kd6 {[%emt 0:00:01]} 34. Ra5 {[%emt 0:00:05]} Ra7 {[%emt 0:00:
06]} 35. Re4 {[%emt 0:00:05]} h4 {[%emt 0:00:04]} 36. Rd4+ {[%emt 0:00:04]} Kc6
{[%emt 0:00:05]} 37. Rc4+ {[%emt 0:00:05]} Kb6 {[%emt 0:00:04]} 38. Raa4 {
[%emt 0:00:05]} Kb5 {[%emt 0:00:02]} 39. Rab4+ {[%emt 0:00:04]} Ka5 {[%emt 0:
00:02]} 40. a4 {[%emt 0:00:09]} h3 {[%emt 0:00:17]} 41. d4 {[%emt 0:00:14]} h2+
{[%emt 0:00:04]} 42. Kh1 {[%emt 0:00:02]} f5 {[%emt 0:00:11]} 43. d5 {[%emt 0:
00:08]} Rh5 {[%emt 0:00:16]} 44. Rd4 {[%emt 0:00:13]} Rh6 {[%emt 0:00:14]} 45.
Rf4 {[%emt 0:00:01]} Ra8 {[%emt 0:00:09]} 46. Rb7 {[%emt 0:00:07]} Rf8 {
[%emt 0:00:11]} 47. Rxc7 {[%emt 0:00:05]} Kb6 {[%emt 0:00:04]} 48. Rc6+ {
[%emt 0:00:02]} Kb7 {[%emt 0:00:02]} 49. Rb4+ {[%emt 0:00:04]} Ka8 {[%emt 0:00:
04]} 50. Rxh6 {[%emt 0:00:01]} a5 {[%emt 0:00:05]} 51. Re6 {[%emt 0:00:02]} Ka7
{[%emt 0:00:03]} 52. Rc6 {[%emt 0:00:02]} Ka8 {[%emt 0:00:02]} 53. Rbb6 {
[%emt 0:00:03]} Ka7 {[%emt 0:00:03]} 54. Ra6+ {[%emt 0:00:02]} Kb7 {[%emt 0:00:
02]} 55. Rcb6+ {[%emt 0:00:02]} Kc7 {[%emt 0:00:01]} 56. Ra7+ {[%emt 0:00:01]}
Kxb6 {[%emt 0:00:01]} 57. Rh7 {[%emt 0:00:02]} Kc5 {[%emt 0:00:03]} 58. Re7 {
[%emt 0:00:02]} Kxd5 {[%emt 0:00:03]} 59. Rh7 {[%emt 0:00:00]} Kd4 {[%emt 0:00:
01]} 60. Ra7 {[%emt 0:00:00]} Ke3 {[%emt 0:00:01]} 61. Rc7 {[%emt 0:00:00]}
Kxf3 {[%emt 0:00:01]} 62. Rd7 {[%emt 0:00:00]} Ke2 {[%emt 0:00:02]} 63. Re7+ {
[%emt 0:00:00]} Kd2 {[%emt 0:00:01]} 64. Rc7 {[%emt 0:00:00]} f4 {[%emt 0:00:
02]} 65. Rb7 {[%emt 0:00:00]} f3 {[%emt 0:00:01]} 66. Ra7 {[%emt 0:00:00]} f2 {
[%emt 0:00:01]} 67. Rxa5 {[%emt 0:00:00]} f1=Q+ {[%emt 0:00:02]
FullMagentaEclipse won on time} 0-1

[Event "Fast Chess"]
[Site "ChessKid.com"]
[Date "2020.05.08"]
[Round "3"]
[White "Li, Tobias"]
[Black "Halimi, Dorian"]
[Result "1-0"]
[ECO "C50"]
[WhiteElo "1374"]
[BlackElo "1209"]
[PlyCount "31"]
[EventDate "2020.??.??"]
[TimeControl "300"]
[WhiteClock "0:03:46"]
[BlackClock "0:03:57"]

1. e4 {[%emt 0:00:02]} e5 {[%emt 0:00:01]} 2. Nf3 {[%emt 0:00:01]} Nc6 {
[%emt 0:00:01]} 3. Bc4 {[%emt 0:00:01]} h6 {[%emt 0:00:04]} 4. d3 {[%emt 0:00:
02]} a6 {[%emt 0:00:01]} 5. O-O {[%emt 0:00:01]} Nf6 {[%emt 0:00:03]} 6. c3 {
[%emt 0:00:02]} Bd6 {[%emt 0:00:03]} 7. d4 {[%emt 0:00:02]} exd4 {[%emt 0:00:
03]} 8. cxd4 {[%emt 0:00:01]} Nxe4 {[%emt 0:00:04]} 9. Re1 {[%emt 0:00:10]} Qe7
{[%emt 0:00:08]} 10. Nc3 {[%emt 0:00:04]} O-O {[%emt 0:00:07]} 11. Rxe4 {
[%emt 0:00:03]} Qf6 {[%emt 0:00:10]} 12. Nd5 {[%emt 0:00:08]} Qg6 {[%emt 0:00:
18]} 13. Re1 {[%emt 0:00:18]} Qh5 {[%emt 0:00:06]} 14. Nc3 {[%emt 0:00:04]}
Qxh2+ {[%emt 0:00:03]} 15. Nxh2 {[%emt 0:00:02]} Bxh2+ {[%emt 0:00:02]} 16.
Kxh2 {[%emt 0:00:03] OnlyHungryKiwi won by resignation} 1-0

[Event "Fast Chess"]
[Site "ChessKid.com"]
[Date "2020.05.08"]
[Round "3"]
[White "Li, Patrick"]
[Black "Dai, Lana"]
[Result "1-0"]
[ECO "C55"]
[WhiteElo "1238"]
[BlackElo "1258"]
[PlyCount "73"]
[EventDate "2020.??.??"]
[TimeControl "300"]
[WhiteClock "0:01:29"]
[BlackClock "0:02:20"]

1. e4 {[%emt 0:00:07]} e5 {[%emt 0:00:02]} 2. Nf3 {[%emt 0:00:00]} Nc6 {
[%emt 0:00:02]} 3. Nc3 {[%emt 0:00:01]} Nf6 {[%emt 0:00:01]} 4. Bc4 {[%emt 0:
00:00]} h6 {[%emt 0:00:02]} 5. O-O {[%emt 0:00:01]} a6 {[%emt 0:00:01]} 6. d3 {
[%emt 0:00:02]} b5 {[%emt 0:00:02]} 7. Bb3 {[%emt 0:00:03]} Bc5 {[%emt 0:00:01]
} 8. Nd5 {[%emt 0:00:04]} Nxd5 {[%emt 0:00:02]} 9. Bxd5 {[%emt 0:00:02]} Rb8 {
[%emt 0:00:04]} 10. Bxc6 {[%emt 0:00:01]} dxc6 {[%emt 0:00:01]} 11. Nxe5 {
[%emt 0:00:00]} Qd6 {[%emt 0:00:25]} 12. Qh5 {[%emt 0:00:08]} O-O {[%emt 0:00:
11]} 13. Nf3 {[%emt 0:00:09]} b4 {[%emt 0:00:11]} 14. Qh4 {[%emt 0:00:02]} Be6
{[%emt 0:00:08]} 15. Qg3 {[%emt 0:00:02]} Qxg3 {[%emt 0:00:04]} 16. hxg3 {
[%emt 0:00:03]} a5 {[%emt 0:00:06]} 17. Ne5 {[%emt 0:00:07]} Rb6 {[%emt 0:00:
10]} 18. Be3 {[%emt 0:00:03]} Bxe3 {[%emt 0:00:03]} 19. fxe3 {[%emt 0:00:00]}
a4 {[%emt 0:00:05]} 20. Rae1 {[%emt 0:00:08]} b3 {[%emt 0:00:03]} 21. cxb3 {
[%emt 0:00:04]} axb3 {[%emt 0:00:01]} 22. axb3 {[%emt 0:00:02]} Rxb3 {[%emt 0:
00:04]} 23. Rb1 {[%emt 0:00:03]} Rb6 {[%emt 0:00:03]} 24. Rfc1 {[%emt 0:00:07]}
Ba2 {[%emt 0:00:06]} 25. Ra1 {[%emt 0:00:05]} Be6 {[%emt 0:00:09]} 26. Nxc6 {
[%emt 0:00:08]} Bd7 {[%emt 0:00:10]} 27. Ne5 {[%emt 0:00:04]} Be6 {[%emt 0:00:
06]} 28. Rxc7 {[%emt 0:00:03]} Rxb2 {[%emt 0:00:05]} 29. Nc6 {[%emt 0:00:17]}
Re2 {[%emt 0:00:06]} 30. Nd4 {[%emt 0:00:21]} Rxe3 {[%emt 0:00:20]} 31. Nxe6 {
[%emt 0:00:01]} fxe6 {[%emt 0:00:02]} 32. Raa7 {[%emt 0:00:05]} Rf7 {[%emt 0:
00:08]} 33. Rxf7 {[%emt 0:00:04]} Re1+ {[%emt 0:00:05]} 34. Kh2 {[%emt 0:00:03]
} Re3 {[%emt 0:00:17]} 35. Rxg7+ {[%emt 0:00:04]} Kh8 {[%emt 0:00:02]} 36. Rge7
{[%emt 0:00:05]} Kg8 {[%emt 0:00:05]} 37. Re8# {[%emt 0:00:02] WideClassyQuiz
won by checkmate} 1-0

[Event "Fast Chess"]
[Site "ChessKid.com"]
[Date "2020.05.08"]
[Round "1"]
[White "Li, Tobais"]
[Black "Li, Patrick"]
[Result "1-0"]
[ECO "A00"]
[WhiteElo "1379"]
[BlackElo "1239"]
[PlyCount "64"]
[EventDate "2020.??.??"]
[TimeControl "300"]
[WhiteClock "0:02:43"]
[BlackClock "0:02:52"]

1. e4 {[%emt 0:00:32]} e5 {[%emt 0:00:02]} 2. Nf3 {[%emt 0:00:01]} Nc6 {
[%emt 0:00:01]} 3. Bc4 {[%emt 0:00:02]} Nf6 {[%emt 0:00:00]} 4. Ng5 {[%emt 0:
00:01]} Qe7 {[%emt 0:00:09]} 5. Nxf7 {[%emt 0:00:02]} Rg8 {[%emt 0:00:05]} 6.
Nxe5 {[%emt 0:00:01]} Rh8 {[%emt 0:00:03]} 7. Nf7 {[%emt 0:00:11]} Rg8 {
[%emt 0:00:04]} 8. Ng5 {[%emt 0:00:01]} Nd4 {[%emt 0:00:06]} 9. O-O {[%emt 0:
00:11]} Qc5 {[%emt 0:00:04]} 10. Bxg8 {[%emt 0:00:03]} Nxc2 {[%emt 0:00:04]}
11. Bf7+ {[%emt 0:00:03]} Ke7 {[%emt 0:00:04]} 12. Bb3 {[%emt 0:00:08]} Nxa1 {
[%emt 0:00:02]} 13. Nc3 {[%emt 0:00:02]} Qd6 {[%emt 0:00:10]} 14. d3 {[%emt 0:
00:08]} h6 {[%emt 0:00:01]} 15. Nf3 {[%emt 0:00:02]} Kd8 {[%emt 0:00:01]} 16.
Be3 {[%emt 0:00:01]} c6 {[%emt 0:00:08]} 17. Qxa1 {[%emt 0:00:02]} Kc7 {
[%emt 0:00:07]} 18. Qd1 {[%emt 0:00:05]} Kb8 {[%emt 0:00:01]} 19. g3 {[%emt 0:
00:02]} Be7 {[%emt 0:00:01]} 20. Bf4 {[%emt 0:00:02]} Qxf4 {[%emt 0:00:07]} 21.
gxf4 {[%emt 0:00:02]} Ng4 {[%emt 0:00:01]} 22. Kg2 {[%emt 0:00:02]} Ne3+ {
[%emt 0:00:03]} 23. Kg1 {[%emt 0:00:03]} Nxd1 {[%emt 0:00:09]} 24. Rxd1 {
[%emt 0:00:01]} Bb4 {[%emt 0:00:08]} 25. Ne5 {[%emt 0:00:04]} Bxc3 {[%emt 0:00:
09]} 26. bxc3 {[%emt 0:00:05]} d6 {[%emt 0:00:03]} 27. Nf3 {[%emt 0:00:03]} g6
{[%emt 0:00:02]} 28. f5 {[%emt 0:00:01]} g5 {[%emt 0:00:04]} 29. f6 {[%emt 0:
00:03]} h5 {[%emt 0:00:02]} 30. f7 {[%emt 0:00:01]} Be6 {[%emt 0:00:04]} 31.
Nxg5 {[%emt 0:00:01]} Bxf7 {[%emt 0:00:08]} 32. Nxf7 {[%emt 0:00:02]} d5 {
[%emt 0:00:04] OnlyHungryKiwi won by resignation} 1-0

[Event "Fast Chess"]
[Site "ChessKid.com"]
[Date "2020.05.08"]
[Round "1"]
[White "Georgiev, Maximilian"]
[Black "Horvath, Alexander"]
[Result "0-1"]
[ECO "A10"]
[WhiteElo "1056"]
[BlackElo "1328"]
[Annotator "Fesselung, Gegenangriff"]
[PlyCount "88"]
[EventDate "2020.??.??"]
[TimeControl "300"]
[WhiteClock "0:01:50"]
[BlackClock "0:02:36"]

1. c4 {[%emt 0:00:02]} f5 {[%emt 0:00:02]} 2. g3 {[%emt 0:00:02]} Nc6 {[%emt 0:
00:03]} 3. Bg2 {[%emt 0:00:01]} Nf6 {[%emt 0:00:02]} 4. e3 {[%emt 0:00:01]} b6
{[%emt 0:00:03]} 5. Ne2 {[%emt 0:00:02]} Bb7 {[%emt 0:00:01]} 6. O-O {[%emt 0:
00:01]} Qc8 {[%emt 0:00:04]} 7. Nbc3 {[%emt 0:00:03]} e6 {[%emt 0:00:11]} 8. d3
{[%emt 0:00:03]} Bd6 {[%emt 0:00:03]} 9. a3 {[%emt 0:00:02]} Ne7 {[%emt 0:00:
05]} 10. Bd2 {[%emt 0:00:04]} Bxg2 {[%emt 0:00:03]} 11. Kxg2 {[%emt 0:00:02]}
O-O {[%emt 0:00:01]} 12. Kg1 {[%emt 0:00:02]} Ng4 {[%emt 0:00:05]} 13. f3 {
[%emt 0:00:04]} Nf6 {[%emt 0:00:12]} 14. Kg2 {[%emt 0:00:03]} Qb7 {[%emt 0:00:
03]} 15. Ra2 {[%emt 0:00:04]} Ng4 {[%emt 0:00:07]} 16. h3 {[%emt 0:00:05]} Nf6
{[%emt 0:00:04]} 17. Nb5 {[%emt 0:00:04]} Bc5 {[%emt 0:00:10]} 18. d4 {[%emt 0:
00:03]} Bd6 {[%emt 0:00:05]} 19. Nxd6 {[%emt 0:00:02]} cxd6 {[%emt 0:00:00]}
20. Qb3 {[%emt 0:00:04]} d5 {[%emt 0:00:06]} 21. cxd5 {[%emt 0:00:07]} Nexd5 {
[%emt 0:00:00]} 22. Ba5 {[%emt 0:00:03]} Rab8 {[%emt 0:00:12]} 23. Bd2 {
[%emt 0:00:04]} a5 {[%emt 0:00:09]} 24. e4 {[%emt 0:00:05]} fxe4 {[%emt 0:00:
03]} 25. fxe4 {[%emt 0:00:01]} Nxe4 {[%emt 0:00:03]} 26. Rxf8+ {[%emt 0:00:00]}
Kxf8 {[%emt 0:00:02]} 27. Qf3+ {[%emt 0:00:06]} Kg8 {[%emt 0:00:01]} 28. Qxe4 {
[%emt 0:00:00]} Nf4+ {[%emt 0:00:08]} 29. Kf3 {[%emt 0:00:07]} Nxe2 {[%emt 0:
00:06]} 30. Ke3 {[%emt 0:00:06]} Nxg3 {[%emt 0:00:07]} 31. Qxb7 {[%emt 0:00:04]
} Rxb7 {[%emt 0:00:03]} 32. Kf3 {[%emt 0:00:02]} Nf1 {[%emt 0:00:04]} 33. Bf4 {
[%emt 0:00:05]} d5 {[%emt 0:00:07]} 34. Kf2 {[%emt 0:00:02]} Rf7 {[%emt 0:00:
04]} 35. Kf3 $4 {[%emt 0:00:11]} Nd2+ {[%emt 0:00:07]} 36. Kg3 {[%emt 0:00:03]}
Ne4+ {[%emt 0:00:02]} 37. Kg4 {[%emt 0:00:04]} h5+ {[%emt 0:00:04]} 38. Kf3 {
[%emt 0:00:01]} g5 {[%emt 0:00:02]} 39. Ke3 {[%emt 0:00:12]} gxf4+ {[%emt 0:00:
02]} 40. Kf3 {[%emt 0:00:02]} Nd2+ {[%emt 0:00:01]} 41. Ke2 {[%emt 0:00:01]}
f3+ {[%emt 0:00:07]} 42. Kf2 {[%emt 0:00:03]} Ne4+ {[%emt 0:00:02]} 43. Kf1 {
[%emt 0:00:01]} f2 {[%emt 0:00:02]} 44. b3 {[%emt 0:00:02]} Ng3+ {[%emt 0:00:
04] KeenOrangeTeeth won by resignation} 0-1

[Event "Fast Chess"]
[Site "ChessKid.com"]
[Date "2020.05.08"]
[Round "2"]
[White "Georgiev, Maximilian"]
[Black "Li, Tobias"]
[Result "0-1"]
[ECO "A00"]
[WhiteElo "1322"]
[BlackElo "1386"]
[Annotator "Zurückschlagen nicht vergessen"]
[PlyCount "30"]
[EventDate "2020.??.??"]
[TimeControl "300"]
[WhiteClock "0:04:16"]
[BlackClock "0:04:23"]

1. g3 {[%emt 0:00:00]} e5 {[%emt 0:00:02]} 2. Bg2 {[%emt 0:00:01]} Nc6 {
[%emt 0:00:03]} 3. b3 {[%emt 0:00:01]} Nf6 {[%emt 0:00:01]} 4. Bb2 {[%emt 0:00:
02]} Bc5 {[%emt 0:00:00]} 5. Nc3 {[%emt 0:00:02]} Ng4 {[%emt 0:00:01]} 6. Nf3 {
[%emt 0:00:05]} Nxf2 {[%emt 0:00:02]} 7. Qc1 {[%emt 0:00:08]} Nxh1 {[%emt 0:00:
02]} 8. e3 $4 {[%emt 0:00:02]} Nxg3 {[%emt 0:00:03]} 9. hxg3 {[%emt 0:00:02]}
O-O {[%emt 0:00:01]} 10. d3 {[%emt 0:00:02]} d6 {[%emt 0:00:06]} 11. Qd2 {
[%emt 0:00:01]} Bb4 {[%emt 0:00:02]} 12. O-O-O {[%emt 0:00:02]} d5 {[%emt 0:00:
08]} 13. e4 {[%emt 0:00:02]} d4 {[%emt 0:00:02]} 14. Nd5 {[%emt 0:00:05]} Bxd2+
{[%emt 0:00:04]} 15. Rxd2 {[%emt 0:00:01]} Be6 {[%emt 0:00:07] OnlyHungryKiwi
won by resignation} 0-1

[Event "Fast Chess"]
[Site "ChessKid.com"]
[Date "2020.05.08"]
[Round "2"]
[White "Li, Patrick"]
[Black "Georgiev, Maximilian"]
[Result "0-1"]
[ECO "B27"]
[WhiteElo "1228"]
[BlackElo "1068"]
[PlyCount "28"]
[EventDate "2020.??.??"]
[TimeControl "300"]
[WhiteClock "0:04:18"]
[BlackClock "0:04:09"]

1. e4 {[%emt 0:00:02]} c5 {[%emt 0:00:01]} 2. Nf3 {[%emt 0:00:00]} g6 {[%emt 0:
00:01]} 3. Nc3 {[%emt 0:00:01]} Bg7 {[%emt 0:00:00]} 4. Bc4 {[%emt 0:00:01]} e6
{[%emt 0:00:01]} 5. d3 {[%emt 0:00:04]} h6 {[%emt 0:00:03]} 6. O-O {[%emt 0:00:
02]} Ne7 {[%emt 0:00:01]} 7. d4 {[%emt 0:00:06]} cxd4 {[%emt 0:00:02]} 8. Nxd4
{[%emt 0:00:01]} Bxd4 {[%emt 0:00:03]} 9. Qxd4 {[%emt 0:00:04]} Rg8 {[%emt 0:
00:04]} 10. Qd6 {[%emt 0:00:10]} Nbc6 {[%emt 0:00:08]} 11. Nb5 {[%emt 0:00:06]}
Kf8 {[%emt 0:00:13]} 12. Nc7 {[%emt 0:00:06]} Rb8 {[%emt 0:00:01]} 13. Nxe6+ {
[%emt 0:00:05]} dxe6 {[%emt 0:00:02]} 14. Qxb8 {[%emt 0:00:03]} Nxb8 {[%emt 0:
00:02] TallSnazzyBall won by resignation} 0-1

[Event "Fast Chess"]
[Site "ChessKid.com"]
[Date "2020.05.08"]
[Round "3"]
[White "Li, Tobias"]
[Black "Georgiev, Maximilian"]
[Result "1-0"]
[ECO "B27"]
[WhiteElo "1388"]
[BlackElo "1066"]
[PlyCount "91"]
[EventDate "2020.??.??"]
[TimeControl "300"]
[WhiteClock "0:02:41"]
[BlackClock "0:00:58"]

1. e4 {[%emt 0:00:02]} c5 {[%emt 0:00:00]} 2. Nf3 {[%emt 0:00:03]} g6 {[%emt 0:
00:01]} 3. Nc3 {[%emt 0:00:02]} Bg7 {[%emt 0:00:01]} 4. Bc4 {[%emt 0:00:01]} e6
{[%emt 0:00:01]} 5. a3 {[%emt 0:00:02]} Ne7 {[%emt 0:00:02]} 6. O-O {[%emt 0:
00:02]} O-O {[%emt 0:00:01]} 7. d3 {[%emt 0:00:00]} h6 {[%emt 0:00:01]} 8. h3 {
[%emt 0:00:07]} Nbc6 {[%emt 0:00:01]} 9. Re1 {[%emt 0:00:01]} a6 {[%emt 0:00:
02]} 10. Bf4 {[%emt 0:00:05]} b6 {[%emt 0:00:03]} 11. Bd6 {[%emt 0:00:16]} a5 {
[%emt 0:00:02]} 12. Rb1 {[%emt 0:00:18]} Bb7 {[%emt 0:00:02]} 13. b4 {[%emt 0:
00:01]} axb4 {[%emt 0:00:01]} 14. axb4 {[%emt 0:00:01]} cxb4 {[%emt 0:00:01]}
15. Ne2 {[%emt 0:00:10]} Nc8 {[%emt 0:00:03]} 16. Bxf8 {[%emt 0:00:13]} Kxf8 {
[%emt 0:00:05]} 17. Bb5 {[%emt 0:00:09]} N6a7 {[%emt 0:00:05]} 18. Bc4 {
[%emt 0:00:05]} Nc6 {[%emt 0:00:05]} 19. Bb5 {[%emt 0:00:01]} N6a7 {[%emt 0:00:
02]} 20. Rxb4 {[%emt 0:00:02]} Bc3 {[%emt 0:00:07]} 21. Nxc3 {[%emt 0:00:04]}
Nxb5 {[%emt 0:00:03]} 22. Nxb5 {[%emt 0:00:03]} Qe7 {[%emt 0:00:05]} 23. Rb1 {
[%emt 0:00:04]} Bc6 {[%emt 0:00:05]} 24. Nc7 {[%emt 0:00:04]} Ra7 {[%emt 0:00:
04]} 25. Nb5 {[%emt 0:00:04]} Bxb5 {[%emt 0:00:02]} 26. Rxb5 {[%emt 0:00:04]}
d6 {[%emt 0:00:06]} 27. e5 {[%emt 0:00:07]} d5 {[%emt 0:00:02]} 28. Nd4 {
[%emt 0:00:06]} Qd7 {[%emt 0:00:02]} 29. Rb1 {[%emt 0:00:06]} Ne7 {[%emt 0:00:
04]} 30. Rxb6 {[%emt 0:00:05]} Nc8 {[%emt 0:00:03]} 31. Rb8 {[%emt 0:00:12]}
Kg7 {[%emt 0:00:05]} 32. Rb1 {[%emt 0:00:06]} Qa4 {[%emt 0:00:05]} 33. Nf3 {
[%emt 0:00:10]} Ne7 {[%emt 0:00:07]} 34. c3 {[%emt 0:00:10]} Qc6 {[%emt 0:00:
07]} 35. Qb3 {[%emt 0:00:08]} Rb7 {[%emt 0:00:07]} 36. Qxb7 {[%emt 0:00:03]}
Qxb7 {[%emt 0:00:03]} 37. Rxb7 {[%emt 0:00:03]} Nc6 {[%emt 0:00:01]} 38. Rb6 {
[%emt 0:00:04]} Ne7 {[%emt 0:00:03]} 39. Rb7 {[%emt 0:00:07]} Nc6 {[%emt 0:00:
03]} 40. Rc7 {[%emt 0:00:03]} Na5 {[%emt 0:00:03]} 41. Ra1 {[%emt 0:00:03]} Nb3
{[%emt 0:00:03]} 42. Rb1 {[%emt 0:00:05]} Na5 {[%emt 0:00:01]} 43. c4 {[%emt 0:
00:12]} dxc4 {[%emt 0:00:03]} 44. dxc4 {[%emt 0:00:04]} h5 {[%emt 0:00:03]} 45.
c5 {[%emt 0:00:02]} Kh6 {[%emt 0:00:04]} 46. c6 {[%emt 0:00:02] OnlyHungryKiwi
won by resignation} 1-0